bitfinex/quotes_ETHUSD_20241122
["timestamp","ask_amount","ask_price","bid_price","bid_amount"]
[1732319255485,0.7917,3315.5,3314.9,2.45204051]
[1732319255789,0.7917,3315.5,3315.0,0.03139993]
[1732319256250,0.7917,3315.5,3315.3,2.45204051]
[1732319256588,0.7917,3315.5,3315.4,0.03148482]
[1732319257394,0.7917,3316.2,3315.4,0.03148482]
[1732319257562,0.7917,3316.2,3315.3,2.45204051]
[1732319257880,3.16,3316.2,3315.3,2.45204051]
[1732319258187,0.7917,3315.8,3314.9,2.75264051]
[1732319258415,0.7917,3315.8,3315.0,0.03145248]
[1732319258559,5.0,3315.4,3315.0,0.03145248]
[1732319259545,5.0,3315.1,3315.0,0.03145248]
[1732319259750,5.5,3315.1,3315.0,0.03145248]
[1732319259967,5.5,3315.1,3314.9,2.75264051]
[1732319260304,5.5,3315.1,3315.0,0.03147943]
[1732319260442,5.0,3315.1,3315.0,0.03147943]
[1732319265388,5.7917,3315.1,3315.0,0.03147943]
[1732319265592,6.3417,3315.1,3314.5,2.75264051]
[1732319265757,0.57917,3315.0,3314.6,0.03152659]
[1732319266577,5.0,3314.7,3314.6,0.03152659]
[1732319266786,5.0,3314.7,3314.2,3.75264051]
[1732319266994,5.0,3314.7,3314.5,2.75264051]
[1732319267486,5.0,3314.7,3314.6,0.79162032]
[1732319268556,5.0,3314.9,3314.6,0.79162032]
[1732319270462,5.0,3314.9,3314.8,2.75264051]
[1732319271001,5.0,3314.9,3314.8,5.78319452]
[1732319271558,5.0,3315.3,3314.8,2.78319452]
[1732319271755,5.0,3315.3,3314.9,3.0]
[1732319271996,5.0,3315.3,3315.0,0.03055132]
[1732319272495,5.0,3315.2,3315.0,0.03055132]
[1732319273501,5.0,3315.3,3315.0,0.03055132]
[1732319273799,5.4795817,3315.3,3315.0,0.03055132]
[1732319274757,5.4795817,3315.3,3314.8,2.75264051]
[1732319275106,5.4795817,3315.3,3314.9,0.03049068]
[1732319275504,5.0,3315.2,3314.9,0.03049068]
[1732319275658,5.8264,3315.2,3314.9,0.03049068]
[1732319275861,0.63059817,3315.1,3314.9,0.03049068]
[1732319276102,0.63059817,3315.1,3314.6,0.7611]
[1732319276259,0.63059817,3315.1,3315.0,0.03048933]
[1732319276458,0.63059817,3315.1,3314.6,0.7611]
[1732319276658,0.63059817,3315.1,3315.0,0.03048933]
[1732319276908,5.63059817,3315.1,3314.6,0.7611]
[1732319277202,5.63059817,3315.1,3315.0,0.03048933]
[1732319277403,5.0,3315.1,3314.6,0.7611]
[1732319277965,5.0,3315.1,3314.7,0.03048933]
[1732319278501,5.0,3315.2,3314.8,2.75264051]
[1732319279004,5.0,3315.2,3314.9,0.03048933]
[1732319280588,5.0,3315.1,3314.9,0.03048933]
[1732319281306,5.0,3315.1,3315.0,0.7889]
[1732319281467,0.1995986,3315.6,3315.0,0.7889]
[1732319281468,5.0,3315.6,3315.0,0.7889]
[1732319281668,5.0,3315.6,3315.0,0.8193368]
[1732319282008,5.0,3315.6,3315.0,0.7889]
[1732319282208,0.6204286,3315.5,3315.1,0.0304368]
[1732319282512,5.0,3315.3,3315.1,0.0304368]
[1732319282869,0.8264,3315.2,3314.6,0.7889]
[1732319284626,5.0,3314.9,3314.6,0.7889]
[1732319284777,5.0,3314.9,3314.2,1.0]
[1732319284778,5.5,3314.9,3314.2,1.0]
[1732319285698,5.0,3314.7,3314.2,1.0]
[1732319286711,5.0,3314.7,3314.3,0.02748497]
[1732319286917,5.55,3314.7,3314.2,1.0]
[1732319287085,5.55,3314.7,3314.4,0.02748497]
[1732319287285,5.55,3314.7,3314.2,1.0]
[1732319287490,0.55,3314.7,3314.5,0.0265688]
[1732319287804,0.55,3315.1,3314.2,1.0]
[1732319288490,5.0,3314.6,3314.2,1.0]
[1732319289579,5.0,3314.4,3314.2,1.0]
[1732319290577,5.0,3314.6,3314.3,0.7889]
[1732319291212,0.5,3314.5,3314.2,1.0]
[1732319293615,5.0,3314.3,3314.2,1.0]
[1732319297499,5.0,3314.5,3314.2,1.8183]
[1732319297698,5.0,3314.5,3314.3,0.8183]
[1732319297938,5.0,3314.5,3314.4,3.57094051]
[1732319298232,5.0,3314.5,3314.4,6.57094051]
[1732319298618,5.0,3315.2,3314.4,6.57094051]
[1732319298815,5.0,3315.2,3314.8,0.8183]
[1732319298990,5.0,3315.2,3314.8,3.8183]
[1732319299505,5.0,3315.6,3315.1,3.0]
[1732319300486,5.0,3315.5,3315.1,3.0]
[1732319300991,5.0,3315.5,3315.2,0.8183]
[1732319301530,5.0,3315.4,3315.2,0.8183]
[1732319301688,5.0,3315.4,3314.9,0.8183]
[1732319302327,5.5,3315.4,3314.9,0.8183]
[1732319303105,5.0,3315.4,3314.9,0.8183]
[1732319303512,5.0,3315.5,3314.9,0.8183]
[1732319304528,5.0,3315.4,3314.9,0.8183]
[1732319304727,0.5,3315.3,3314.9,0.8183]
[1732319305033,5.0,3315.4,3314.9,0.8183]
[1732319306456,5.0,3315.4,3314.8,3.0]
[1732319306457,5.0,3315.1,3314.8,3.0]
[1732319306617,5.0,3315.1,3314.6,0.8183]
[1732319307594,5.0,3315.0,3314.6,0.8183]
[1732319307806,0.5,3314.9,3314.3,3.57094051]
[1732319308285,0.5,3314.9,3314.4,3.0]
[1732319308447,5.5,3314.9,3314.4,3.0]
[1732319308650,5.0,3314.9,3314.4,3.0]
[1732319311566,5.0,3314.8,3314.4,3.0]
[1732319312600,5.0,3314.7,3314.4,3.0]
[1732319314590,0.57689261,3316.0,3314.2,1.0]
[1732319314591,5.0,3315.2,3314.7,3.763]
[1732319315323,5.0,3315.2,3314.9,2.75264051]
[1732319315472,5.0,3315.5,3315.0,3.0]
[1732319315675,5.5,3315.5,3315.0,3.0]
[1732319315908,5.0,3315.5,3315.0,3.0]
[1732319319829,5.0,3315.5,3315.1,0.763]
[1732319320584,5.0,3315.6,3315.1,0.763]
[1732319322215,5.0,3315.6,3315.2,2.75264051]
[1732319322413,5.0,3315.6,3315.4,0.763]
[1732319322621,5.0,3316.0,3315.4,0.763]
[1732319323187,5.0,3316.0,3315.6,2.75264051]
[1732319323384,5.0,3316.0,3315.7,0.763]
[1732319323620,5.0,3316.2,3315.7,0.763]
[1732319323815,5.5,3316.2,3315.7,0.763]
[1732319323994,5.0,3316.2,3315.7,0.763]
[1732319324179,5.0,3316.2,3315.7,3.763]
[1732319325583,0.7943,3316.6,3315.7,3.763]
[1732319325584,5.0,3316.3,3315.7,3.763]
[1732319326605,5.0,3316.4,3315.7,3.763]
[1732319327186,5.0,3316.4,3315.9,2.75264051]
[1732319327523,5.0,3316.6,3316.2,2.75264051]
[1732319327709,5.0,3316.6,3316.3,0.763]
[1732319328100,5.0,3316.6,3316.5,3.51564051]
[1732319328426,5.0,3316.6,3316.5,6.73347556]
[1732319328592,5.0,3317.6,3316.6,0.763]
[1732319328792,0.5,3317.5,3316.6,3.763]
[1732319329492,5.0,3317.1,3316.6,3.763]
[1732319331829,5.0,3317.1,3316.3,0.8113]
[1732319333532,5.0,3316.7,3316.3,0.8113]
[1732319334048,5.5,3316.7,3316.3,0.8113]
[1732319334230,5.0,3316.7,3316.3,0.8113]
[1732319334430,0.7943,3317.2,3316.3,0.8113]
[1732319334431,5.0,3316.5,3316.3,0.8113]
[1732319335950,5.0,3316.5,3316.3,3.8113]
[1732319336842,5.0,3317.1,3316.3,3.8113]
[1732319337047,4.85,3317.1,3316.6,3.0]
[1732319338348,4.85,3317.1,3316.7,0.7979]
[1732319338514,5.0,3317.3,3316.7,0.7979]
[1732319339512,5.0,3317.1,3316.7,0.7979]
[1732319340516,5.0,3317.0,3316.7,0.7979]
[1732319340718,5.0,3317.0,3316.6,3.0]
[1732319341751,5.0,3317.2,3316.6,3.0]
[1732319342655,5.0,3317.0,3316.6,3.0]
[1732319343445,5.0,3317.1,3316.6,3.0]
[1732319345314,5.0,3317.1,3316.9,2.75264051]
[1732319345550,1.203577,3318.4,3316.9,2.75264051]
[1732319345551,5.0,3317.6,3317.0,3.7979]
[1732319345937,5.0,3317.6,3317.3,2.75264051]
[1732319346156,5.0,3317.6,3317.4,0.7979]
[1732319346324,5.0,3317.6,3317.4,3.7979]
[1732319346537,5.0,3318.0,3317.4,3.7979]
[1732319347655,5.0,3318.1,3317.4,3.7979]
[1732319348608,5.7857,3318.0,3317.1,3.7979]
[1732319349548,5.0,3317.8,3317.1,3.7979]
[1732319350559,5.0,3317.4,3317.1,3.7979]
[1732319351650,5.0,3317.5,3317.1,3.7979]
[1732319351848,5.0,3317.5,3316.8,3.8141]
[1732319352167,5.7754,3317.5,3316.8,3.8141]
[1732319352555,5.0,3317.4,3316.8,3.8141]
[1732319353774,5.0,3317.1,3316.8,3.8141]
[1732319356174,0.7753,3317.0,3316.1,3.56934051]
[1732319356359,0.7753,3317.0,3316.2,0.21806418]
[1732319356562,0.7753,3317.0,3316.1,3.56934051]
[1732319356563,5.0,3316.9,3316.1,3.56934051]
[1732319357259,5.0,3316.9,3315.9,0.8167]
[1732319357469,5.0,3316.9,3316.0,0.21817551]
[1732319357772,5.0,3316.4,3315.9,0.8167]
[1732319357934,5.0,3316.4,3316.0,2.97079079]
[1732319358135,5.0,3316.4,3316.2,1.0]
[1732319358577,5.0,3316.7,3316.2,1.0]
[1732319359137,5.0,3316.7,3316.6,2.75264051]
[1732319359342,5.0,3316.7,3316.3,3.56934051]
[1732319359685,5.0,3316.8,3316.3,3.56934051]
[1732319359837,5.5,3316.8,3316.3,0.8167]
[1732319360037,5.0,3316.8,3316.3,0.8167]
[1732319360648,5.0,3316.8,3316.2,1.0]
[1732319360957,0.7753,3316.7,3316.2,1.0]
[1732319361577,5.0,3316.5,3316.2,1.0]
[1732319362665,5.0,3316.7,3316.2,1.0]
[1732319363352,5.0,3316.7,3316.3,3.0]
[1732319363632,5.0,3316.4,3316.2,1.0]
[1732319367154,5.7753,3316.4,3316.2,1.0]
[1732319367382,0.57753,3316.3,3316.2,1.0]
[1732319367586,5.57753,3316.3,3316.2,1.0]
[1732319372405,6.90283,3316.3,3316.2,0.6997]
[1732319372584,0.55,3316.0,3314.3,2.75264051]
[1732319372785,0.690283,3316.2,3314.4,0.21778445]
[1732319372786,0.7951,3315.7,3314.4,0.21778445]
[1732319373102,0.55,3315.6,3314.3,2.75264051]
[1732319373259,0.55,3315.6,3314.3,3.10957456]
[1732319373456,5.0,3314.8,3314.3,3.10957456]
[1732319373787,4.98035335,3314.8,3314.4,3.0]
[1732319374295,4.98035335,3314.8,3314.3,2.75264051]
[1732319374460,5.0,3314.7,3314.4,3.0]
[1732319374663,5.0,3314.7,3314.3,2.75264051]
[1732319375596,5.0,3314.6,3314.3,2.75264051]
[1732319375792,5.0,3314.6,3314.4,0.7982]
[1732319376005,5.0,3314.6,3314.4,4.0989]
[1732319376487,5.0,3315.2,3314.4,4.0989]
[1732319376792,5.0,3315.2,3314.4,3.7982]
[1732319377116,5.0,3315.2,3314.9,0.7982]
[1732319377627,5.0,3315.5,3314.9,0.7982]
[1732319378022,5.0,3315.5,3315.3,0.7982]
[1732319378523,5.0,3316.0,3315.3,0.7982]
[1732319381638,5.0,3316.1,3315.3,0.7982]
[1732319382509,5.0,3315.9,3315.3,0.7982]
[1732319385413,5.0,3315.9,3315.4,0.21798695]
[1732319385619,5.0,3315.9,3315.3,0.7982]
[1732319385814,5.0,3315.9,3315.4,0.21799154]
[1732319385996,5.0,3315.9,3315.3,0.7982]
[1732319386337,5.0,3315.9,3315.5,0.7982]
[1732319386627,5.0,3316.3,3315.6,1.01616712]
[1732319386829,5.0,3316.3,3315.7,0.7982]
[1732319387006,5.0,3316.3,3315.8,0.21791471]
[1732319387207,5.0,3316.3,3315.8,0.40161147]
[1732319387403,5.0,3316.3,3315.9,0.7982]
[1732319387612,5.0,3316.7,3315.9,0.7982]
[1732319388622,5.0,3316.4,3315.9,0.7982]
[1732319391508,5.0,3316.5,3315.9,3.55084051]
[1732319391708,5.0,3316.5,3316.1,0.7982]
[1732319392738,0.7951,3317.2,3316.1,0.7982]
[1732319392739,5.0,3316.8,3316.1,0.7982]
[1732319393685,5.0,3316.7,3316.1,0.7982]
[1732319394914,5.0,3316.7,3316.2,0.41532841]
[1732319396431,5.0,3316.7,3316.6,2.75264051]
[1732319396617,5.0,3316.7,3316.6,3.56254051]
[1732319396940,5.0,3317.6,3316.7,0.8099]
[1732319397112,5.0,3317.6,3317.1,0.8099]
[1732319397619,5.0,3317.8,3317.1,3.8099]
[1732319398550,5.0,3317.7,3317.1,3.8099]
[1732319399619,5.0,3318.0,3317.1,3.8099]
[1732319400624,5.0,3317.7,3317.1,3.8099]
[1732319401121,5.0,3317.7,3317.1,0.8099]
[1732319401320,5.0,3317.7,3317.1,3.8099]
[1732319401529,5.0,3318.2,3317.5,0.7559]
[1732319402557,5.0,3318.7,3318.1,0.7559]
[1732319402719,5.0,3318.7,3318.2,2.75264051]
[1732319402918,5.0,3318.7,3318.3,3.0]
[1732319403657,5.0,3318.8,3318.3,3.0]
[1732319404754,5.0,3318.9,3318.3,3.0]
[1732319405461,5.0,3318.9,3318.4,0.7559]
[1732319406784,5.0,3319.0,3318.4,0.7559]
[1732319407528,5.0,3319.2,3318.4,0.7559]
[1732319408641,5.0,3319.0,3318.4,0.7559]
[1732319408838,5.0,3319.0,3318.5,2.75264051]
[1732319409141,5.0,3319.0,3318.9,0.7559]
[1732319409525,5.0,3319.6,3318.9,0.7559]
[1732319409757,5.0,3319.6,3318.9,0.78602681]
[1732319409962,5.0,3319.6,3318.9,1.13989354]
[1732319410129,5.0,3319.6,3319.2,0.7559]
[1732319410552,0.822,3319.8,3318.9,3.0]
[1732319410771,0.822,3319.8,3318.8,0.7559]
[1732319410928,0.5822,3319.7,3318.8,0.7559]
[1732319411675,5.0,3319.6,3319.0,0.7559]
[1732319412578,5.0,3319.8,3319.0,0.7559]
[1732319412755,5.5,3319.8,3319.0,0.7559]
[1732319413134,1.3129,3319.7,3318.7,0.7678]
[1732319413464,5.0,3319.5,3318.4,0.7678]
[1732319414864,0.7629,3319.3,3318.4,0.7678]
[1732319415644,5.0,3318.8,3318.4,0.7678]
[1732319418646,0.7629,3318.7,3317.7,0.7678]
[1732319418957,1.2629,3318.7,3317.7,0.7678]
[1732319420173,0.7629,3318.7,3317.7,3.52044051]
[1732319420372,5.0,3318.8,3317.9,0.7678]
[1732319420601,5.0,3318.9,3318.0,2.7827746]
[1732319420794,5.0,3318.9,3318.1,3.35505746]
[1732319420998,5.0,3318.9,3318.2,0.7678]
[1732319421669,5.0,3319.1,3318.2,0.79793175]
[1732319421880,5.0,3319.1,3317.3,0.01]
[1732319421881,0.7629,3319.0,3317.6,0.7678]
[1732319422663,0.7629,3318.7,3317.6,0.7678]
[1732319422860,0.57629,3318.6,3317.6,0.7678]
[1732319423485,5.0,3318.2,3317.6,0.7678]
[1732319424465,5.0,3318.3,3317.6,0.7678]
[1732319425675,5.0,3318.4,3317.6,0.7678]
[1732319425877,0.5,3318.3,3317.6,0.7678]
[1732319426077,5.0,3318.4,3317.6,0.7678]
[1732319426464,5.0,3318.6,3317.6,0.7678]
[1732319427600,5.0,3318.4,3317.6,0.7678]
[1732319428406,5.0,3318.4,3317.6,1.14458]
[1732319428606,5.0,3318.7,3317.7,0.7678]
[1732319428967,5.0,3318.7,3317.8,0.03013584]
[1732319429168,5.0,3318.7,3317.9,0.7678]
[1732319429604,5.0,3318.6,3317.9,0.7678]
[1732319430076,0.7629,3318.5,3318.1,3.0]
[1732319430284,1.2629,3318.5,3317.6,0.7678]
[1732319431663,5.0,3318.2,3316.9,0.7571]
[1732319431862,5.0,3318.2,3317.1,2.75264051]
[1732319432112,5.0,3318.2,3317.2,0.7571]
[1732319432265,5.0,3318.2,3317.2,0.82008592]
[1732319432463,5.0,3318.1,3317.2,0.82008592]
[1732319432705,0.5,3318.0,3317.2,0.82008592]
[1732319432891,5.0,3318.1,3317.2,0.85022947]
[1732319433274,5.0,3318.1,3317.5,0.8092]
[1732319433510,0.7629,3318.5,3317.5,0.8092]
[1732319433808,0.7629,3318.5,3317.6,0.06255515]
[1732319433997,0.57629,3318.4,3317.6,0.06255515]
[1732319434572,5.57629,3318.4,3317.6,0.06255515]
[1732319434810,5.0,3318.4,3317.6,0.06255515]
[1732319435395,5.0,3318.4,3317.8,0.8092]
[1732319435593,5.0,3318.9,3317.9,0.06252826]
[1732319435915,0.49886362,3318.8,3318.0,0.8092]
[1732319436111,5.0,3318.9,3318.0,0.8092]
[1732319436465,5.0,3319.1,3318.1,0.8092]
[1732319436696,5.0,3319.1,3318.2,0.41705763]
[1732319437604,5.0,3318.9,3318.2,0.41705763]
[1732319438511,5.0,3319.1,3318.2,0.41705763]
[1732319438803,5.0,3319.1,3318.3,0.42262576]
[1732319439113,5.0,3319.1,3318.4,0.06077406]
[1732319439470,0.7779,3319.6,3318.4,0.06077406]
[1732319439471,5.0,3319.0,3318.4,0.06077406]
[1732319443571,5.0,3318.9,3318.4,0.06077406]
[1732319444576,5.0,3319.1,3318.4,0.06077406]
[1732319445511,5.0,3319.0,3318.4,0.06077406]
[1732319446613,5.0,3319.1,3318.4,0.06077406]
[1732319447577,5.0,3319.0,3318.4,0.06077406]
[1732319448015,5.0,3319.0,3318.5,0.8092]
[1732319448312,5.0,3319.0,3318.6,0.06073777]
[1732319448523,5.0,3319.3,3318.6,0.06073777]
[1732319450306,5.0,3319.3,3318.6,0.44773155]
[1732319450617,5.0,3319.2,3318.6,0.44773155]
[1732319450822,5.0,3319.2,3318.7,0.8092]
[1732319451002,5.0,3319.2,3318.8,0.0607297]
[1732319451220,5.0,3319.2,3318.7,0.8092]
[1732319451406,5.0,3319.2,3318.8,0.0607297]
[1732319451607,5.0,3319.3,3318.7,0.8092]
[1732319451912,5.0,3319.3,3318.8,0.0607297]
[1732319452303,5.0,3319.3,3318.7,0.8092]
[1732319452505,5.0,3319.1,3318.9,0.0607297]
[1732319452692,5.0,3319.1,3318.8,0.06069879]
[1732319452893,5.0,3319.1,3318.7,0.8092]
[1732319453096,5.0,3319.1,3318.9,0.06069879]
[1732319453407,5.0,3319.1,3319.0,0.06069879]
[1732319453757,5.0,3319.1,3318.7,0.8092]
[1732319453758,5.0,3319.2,3318.7,0.8092]
[1732319453880,5.0,3319.2,3319.0,0.06069879]
[1732319454213,5.0,3319.2,3319.1,0.06069879]
[1732319454515,5.0,3319.1,3318.7,0.8092]
[1732319455581,5.0,3319.2,3318.7,0.8092]
[1732319456698,5.0,3319.1,3318.7,0.8092]
[1732319457561,5.0,3318.9,3317.9,0.8016]
[1732319457765,5.0,3318.9,3318.1,3.0]
[1732319458062,5.0,3318.9,3318.2,0.8016]
[1732319459543,5.0,3319.2,3318.2,0.8016]
[1732319459714,5.5,3319.2,3318.2,0.8016]
[1732319459917,5.0,3319.2,3318.2,0.8016]
[1732319462460,5.0,3319.2,3318.3,0.0607539]
[1732319462626,5.0,3319.1,3318.4,0.8016]
[1732319462817,5.5,3319.1,3318.4,0.8016]
[1732319463014,0.7645,3319.0,3318.5,0.05872301]
[1732319463218,0.7645,3319.0,3318.2,0.8016]
[1732319463447,1.39095,3319.0,3318.3,0.05667558]
[1732319463649,5.0,3318.7,3318.2,0.8016]
[1732319463956,5.0,3318.7,3318.3,0.05667558]
[1732319464330,5.0,3318.7,3318.2,0.8016]
[1732319464867,5.0,3318.7,3318.3,0.05667558]
[1732319465629,5.0,3318.6,3317.9,0.8016]
[1732319465836,5.5,3318.6,3318.0,0.05667558]
[1732319466754,5.0,3318.4,3318.0,0.05667558]
[1732319468339,5.55,3318.4,3318.0,0.05667558]
[1732319468667,5.0,3318.2,3318.0,0.05667558]
[1732319470568,5.0,3318.3,3318.0,0.05667558]
[1732319471535,5.0,3318.2,3318.0,0.05667558]
[1732319472440,5.0,3318.2,3318.1,0.8016]
[1732319472751,5.0,3318.7,3318.1,0.85836659]
[1732319472949,0.5,3318.6,3318.1,0.85836659]
[1732319474569,5.0,3318.8,3318.1,0.85836659]
[1732319475439,5.0,3318.6,3318.1,0.85836659]
[1732319476539,5.0,3318.7,3318.1,0.85836659]
[1732319476867,5.5,3318.7,3318.1,0.85836659]
[1732319477074,5.0,3318.7,3318.1,0.85836659]
[1732319477574,5.0,3318.9,3318.1,0.85836659]
[1732319478245,5.0,3318.9,3318.3,0.7549]
[1732319478448,5.0,3318.9,3318.5,0.7549]
[1732319478645,5.0,3319.3,3318.5,0.7549]
[1732319478844,5.0,3319.3,3318.6,0.05673447]
[1732319479049,5.0,3319.3,3318.7,0.7549]
[1732319479666,5.0,3319.2,3318.8,0.05673447]
[1732319479835,5.0,3319.2,3318.7,0.7549]
[1732319480033,5.0,3319.2,3318.8,0.05673447]
[1732319480256,5.0,3319.2,3318.7,0.7549]
[1732319480567,5.0,3319.2,3318.8,0.05673447]
[1732319480947,5.0,3319.2,3318.7,0.7549]
[1732319481437,5.0,3319.2,3318.8,0.05673447]
[1732319481641,5.0,3319.2,3318.7,0.7549]
[1732319481835,5.0,3319.2,3318.8,0.05673447]
[1732319482040,5.0,3319.2,3318.7,0.7549]
[1732319482270,5.0,3319.2,3318.8,0.05673447]
[1732319482588,0.8198,3319.7,3318.7,0.7549]
[1732319482589,5.0,3319.3,3318.7,0.7549]
[1732319483083,5.0,3319.3,3318.8,0.05673447]
[1732319483262,5.0,3319.3,3318.7,0.7549]
[1732319483578,5.0,3319.3,3318.8,0.05673447]
[1732319484083,5.0,3319.3,3318.9,0.05673447]
[1732319484266,5.0,3319.3,3318.7,0.7549]
[1732319484600,5.0,3319.4,3318.8,0.05673447]
[1732319489480,1.30367339,3319.3,3318.8,0.05673447]
[1732319489686,1.30367339,3319.3,3318.7,0.7549]
[1732319489886,1.30367339,3319.3,3318.4,0.7549]
[1732319489887,0.8198,3319.2,3318.4,0.7549]
[1732319490097,0.21234734,3319.1,3318.5,0.05665551]
[1732319491500,5.0,3318.9,3318.5,0.05665551]
[1732319492569,5.0,3318.7,3318.5,0.05665551]
[1732319493175,5.0,3318.7,3318.4,0.7549]
[1732319493559,5.0,3318.6,3318.4,0.7549]
[1732319493802,5.0,3318.6,3318.3,0.00881441]
[1732319494097,5.0,3318.6,3318.4,0.05665551]
[1732319494284,5.0,3318.6,3318.2,0.8246]
[1732319494674,5.0,3318.6,3318.3,0.05665551]
[1732319494873,5.5,3318.6,3318.2,0.8246]
[1732319495093,5.5,3318.6,3318.3,0.05665551]
[1732319495317,5.5,3318.6,3318.2,0.8246]
[1732319495478,5.5,3318.6,3318.3,0.05665551]
[1732319495682,5.5,3318.6,3318.2,0.8246]
[1732319495979,5.0,3318.6,3318.3,0.05665551]
[1732319497488,5.0,3318.8,3318.3,0.05665551]
[1732319497691,5.0,3318.8,3318.4,0.8246]
[1732319498005,5.0,3318.8,3318.5,0.05665952]
[1732319498627,5.0,3318.9,3318.5,0.05665952]
[1732319498839,5.5,3318.9,3318.5,0.05665952]
[1732319498996,5.0,3318.9,3318.5,0.05665952]
[1732319499329,5.0,3318.9,3318.1,0.8246]
[1732319499616,5.0,3319.1,3318.2,0.8246]
[1732319499788,0.5,3319.0,3318.2,0.88127291]
[1732319499990,5.0,3319.1,3318.2,0.88127291]
[1732319500620,5.0,3319.3,3318.2,0.88127291]
[1732319501612,5.0,3319.2,3318.2,0.88127291]
[1732319501784,5.0,3319.2,3318.4,0.8246]
[1732319501986,5.0,3319.2,3318.3,0.38812729]
[1732319501987,5.0,3319.2,3319.1,0.8246]
[1732319502498,5.0,3320.1,3319.1,0.88123009]
[1732319502700,5.0,3320.1,3319.3,0.8246]
[1732319503424,5.0,3320.1,3319.5,0.8246]
[1732319503600,5.0,3320.3,3319.5,0.8246]
[1732319503810,5.5,3320.3,3319.5,0.8246]
[1732319504030,5.0,3320.3,3319.6,0.05663009]
[1732319504210,5.0,3320.3,3319.7,0.8246]
[1732319504731,5.0,3320.3,3319.8,0.05663009]
[1732319504932,5.0,3320.3,3319.7,0.8246]
[1732319505095,5.0,3320.3,3319.9,0.05663009]
[1732319505289,5.0,3320.3,3320.0,0.8246]
[1732319505496,5.0,3320.5,3320.1,0.05663009]
[1732319507532,5.0,3320.4,3320.1,0.05663009]
[1732319509997,0.8304,3320.3,3320.1,0.05663009]
[1732319510412,0.8304,3320.3,3319.5,0.8246]
[1732319510697,0.8304,3320.3,3319.6,0.05447488]
[1732319510911,0.8304,3320.3,3318.8,3.0]
[1732319510912,0.8304,3320.3,3318.9,0.8246]
[1732319511107,0.63304,3320.2,3319.0,0.65356575]
[1732319511306,0.63304,3320.2,3319.0,0.43693488]
[1732319511512,5.63304,3320.2,3319.0,0.05447488]
[1732319511717,0.8304,3320.1,3319.0,0.05447488]
[1732319512511,0.8304,3320.1,3318.9,0.8246]
[1732319512807,0.766,3319.9,3318.9,0.8246]
[1732319513233,0.766,3319.9,3318.2,0.8323]
[1732319513436,0.766,3319.9,3318.3,0.21687083]
[1732319513639,0.92181754,3320.0,3318.3,0.05447488]
[1732319513640,5.0,3319.1,3318.3,0.05447488]
[1732319513810,5.5766,3319.1,3318.3,0.05447488]
[1732319514014,5.0,3319.1,3318.5,3.0]
[1732319514235,5.0,3319.1,3318.6,0.8323]
[1732319514441,5.0,3319.1,3318.7,0.38323]
[1732319514750,5.0,3319.3,3318.7,0.38323]
[1732319515043,5.0,3319.3,3318.8,0.05459928]
[1732319515448,5.0,3319.3,3318.6,0.8323]
[1732319515745,5.0,3319.1,3318.7,0.05457654]
[1732319516747,5.0,3319.0,3318.7,0.05457654]
[1732319518554,5.0,3319.3,3318.7,0.05457654]
[1732319520046,5.0,3319.3,3318.9,0.8323]
[1732319520350,5.0,3319.3,3319.0,0.38323]
[1732319520653,5.0,3319.7,3319.1,0.05470228]
[1732319521124,5.0,3319.7,3319.2,0.8323]
[1732319521321,5.0,3319.7,3319.3,0.05467285]
[1732319521531,5.0,3319.9,3319.3,0.05467285]
[1732319522043,5.0,3319.9,3319.4,0.8323]
[1732319522548,5.0,3320.4,3319.4,3.0]
[1732319522721,5.0,3320.4,3319.5,0.88697285]
[1732319523407,5.0,3320.2,3319.5,0.88697285]
[1732319524459,0.766,3320.1,3319.5,0.88697285]
[1732319524671,0.5766,3320.0,3319.5,0.88697285]
[1732319525657,5.0,3319.7,3319.5,0.88697285]
[1732319527763,0.766,3320.4,3319.5,0.88697285]
[1732319527764,5.0,3319.8,3319.5,0.88697285]
[1732319528757,0.766,3320.7,3319.5,0.88697285]
[1732319528758,5.0,3320.3,3319.5,0.88697285]
[1732319529057,0.5,3320.2,3319.5,0.88697285]
[1732319529253,5.0,3320.3,3319.5,0.88697285]
[1732319531552,5.0,3320.5,3319.7,0.7798]
[1732319531714,5.0,3320.5,3319.8,0.05465011]
[1732319532637,5.0,3320.4,3319.8,0.05465011]
[1732319532842,5.5,3320.4,3319.8,0.05465011]
[1732319534245,5.0,3320.4,3319.8,0.05465011]
[1732319534645,5.0,3320.4,3319.9,0.7819]
[1732319535075,5.0,3320.4,3320.0,0.05454711]
[1732319535737,5.0,3320.6,3320.0,0.05454711]
[1732319536677,0.7714,3321.0,3320.0,0.05454711]
[1732319536678,5.0,3320.4,3320.0,0.35484711]
[1732319536885,0.7714,3320.3,3320.0,0.05454711]
[1732319537181,0.7714,3320.3,3319.3,0.7819]
[1732319537579,5.0,3320.1,3319.4,0.05270904]
[1732319537791,5.57714,3320.1,3319.4,0.05270904]